[Event "*** Titled Tuesday Blitz"]
[Site "Chess.com"]
[Date "2020.12.29"]
[Round "7"]
[White "ChrisTool2"]
[Black "stephan97"]
[Result "1-0"]
[WhiteElo "2374"]
[BlackElo "2244"]
[TimeControl "180+1"]
[EndTime "11:17:36 PST"]
[Termination "ChrisTool2 won by resignation"]

1. d4 {[%clk 0:03:00.9]} 1... d5 {[%clk 0:02:59.2]} 2. c4 {[%clk 0:03:01.1]}
2... e6 {[%clk 0:02:59.5]} 3. Nc3 {[%clk 0:03:01.5]} 3... Nf6 {[%clk 0:02:59.5]}
4. Nf3 {[%clk 0:03:01.8]} 4... Be7 {[%clk 0:02:58.5]} 5. Bf4 {[%clk 0:03:01.6]}
5... O-O {[%clk 0:02:57.3]} 6. e3 {[%clk 0:03:02.2]} 6... b6 {[%clk 0:02:57.3]}
7. cxd5 {[%clk 0:02:57.6]} 7... Nxd5 {[%clk 0:02:57.3]} 8. Nxd5 {[%clk
0:02:55.3]} 8... Qxd5 {[%clk 0:02:57.3]} 9. Bd3 {[%clk 0:02:51.4]} 9... Qa5+
{[%clk 0:02:57.3]} 10. Nd2 {[%clk 0:02:45.5]} 10... Ba6 {[%clk 0:02:57.2]} 11.
Bxa6 {[%clk 0:02:42.3]} 11... Qxa6 {[%clk 0:02:57.4]} 12. Qe2 {[%clk 0:02:39]}
12... c5 {[%clk 0:02:57]} 13. Bxb8 {[%clk 0:02:17.8]} 13... Qxe2+ {[%clk
0:02:56.4]} 14. Kxe2 {[%clk 0:02:17.6]} 14... Raxb8 {[%clk 0:02:57.3]} 15. dxc5
{[%clk 0:02:15.9]} 15... Bxc5 {[%clk 0:02:56.7]} 16. Nb3 {[%clk 0:02:16.1]}
16... Rfc8 {[%clk 0:02:41.4]} 17. Rac1 {[%clk 0:02:03.6]} 17... Be7 {[%clk
0:02:36.5]} 18. Nd4 {[%clk 0:01:58.4]} 18... Kf8 {[%clk 0:02:36.1]} 19. Nc6
{[%clk 0:01:46.1]} 19... Ra8 {[%clk 0:02:36]} 20. Nxe7 {[%clk 0:01:38.8]} 20...
Kxe7 {[%clk 0:02:35.7]} 21. e4 {[%clk 0:01:34.4]} 21... g5 {[%clk 0:02:35]} 22.
e5 {[%clk 0:01:25.4]} 22... f5 {[%clk 0:02:30.4]} 23. exf6+ {[%clk 0:01:21.8]}
23... Kxf6 {[%clk 0:02:30.5]} 24. Ke3 {[%clk 0:01:22]} 24... Kf5 {[%clk
0:02:29.6]} 25. f3 {[%clk 0:00:55.8]} 25... h5 {[%clk 0:02:28.6]} 26. Rhd1
{[%clk 0:00:52.1]} 26... e5 {[%clk 0:01:53.9]} 27. g3 {[%clk 0:00:45.7]} 27...
g4 {[%clk 0:01:34.6]} 28. fxg4+ {[%clk 0:00:39.3]} 28... hxg4 {[%clk 0:01:30.9]}
29. Rf1+ {[%clk 0:00:38.9]} 29... Kg5 {[%clk 0:01:30.1]} 30. Ke4 {[%clk
0:00:38.6]} 30... Rxc1 {[%clk 0:01:10.1]} 31. Rxc1 {[%clk 0:00:39.5]} 31... Rh8
{[%clk 0:01:10.1]} 32. Rc2 {[%clk 0:00:35]} 32... Kf6 {[%clk 0:01:08.9]} 33. a4
{[%clk 0:00:23.4]} 33... Ke6 {[%clk 0:01:05.1]} 34. b4 {[%clk 0:00:19]} 34...
Kf6 {[%clk 0:01:00.8]} 35. b5 {[%clk 0:00:18.4]} 35... Rh7 {[%clk 0:00:37.3]}
36. Rc6+ {[%clk 0:00:16.6]} 36... Kg5 {[%clk 0:00:37.2]} 37. Kxe5 {[%clk
0:00:13.2]} 37... Rxh2 {[%clk 0:00:36.4]} 38. Rc7 {[%clk 0:00:13.7]} 38... Re2+
{[%clk 0:00:36.6]} 39. Kd5 {[%clk 0:00:13.5]} 39... Re3 {[%clk 0:00:32.9]} 40.
Rxa7 {[%clk 0:00:12.6]} 40... Rxg3 {[%clk 0:00:33.3]} 41. Rg7+ {[%clk
0:00:09.6]} 41... Kf6 {[%clk 0:00:32.7]} 42. Rg8 {[%clk 0:00:09.7]} 42... Kf7
{[%clk 0:00:29]} 43. Rg5 {[%clk 0:00:08.2]} 43... Kf6 {[%clk 0:00:29.3]} 44. Rg8
{[%clk 0:00:07.7]} 44... Rg1 {[%clk 0:00:22.4]} 45. Kc6 {[%clk 0:00:07.4]} 45...
g3 {[%clk 0:00:22.5]} 46. Kxb6 {[%clk 0:00:07.4]} 46... g2 {[%clk 0:00:22.8]}
47. a5 {[%clk 0:00:07.4]} 47... Ke7 {[%clk 0:00:22.4]} 48. a6 {[%clk 0:00:07.1]}
48... Kd7 {[%clk 0:00:22.5]} 49. Ka7 {[%clk 0:00:06.5]} 49... Rb1 {[%clk
0:00:20.3]} 50. b6 {[%clk 0:00:05.1]} 50... g1=Q {[%clk 0:00:19.2]} 51. Rxg1
{[%clk 0:00:06]} 51... Rxg1 {[%clk 0:00:18.8]} 52. b7 {[%clk 0:00:06.7]} 52...
Rg8 {[%clk 0:00:09.6]} 53. b8=Q {[%clk 0:00:06.8]} 53... Rxb8 {[%clk 0:00:09.7]}
54. Kxb8 {[%clk 0:00:07.7]} 54... Kc6 {[%clk 0:00:10.6]} 55. a7 {[%clk
0:00:08.3]} 1-0

[Event "*** Titled Tuesday Blitz"]
[Site "Chess.com"]
[Date "2020.12.29"]
[Round "7"]
[White "Brave_spirit12"]
[Black "HanSchut"]
[Result "1-0"]
[WhiteElo "2542"]
[BlackElo "2258"]
[TimeControl "180+1"]
[EndTime "11:17:37 PST"]
[Termination "Brave_spirit12 won by resignation"]

1. e4 {[%clk 0:03:00.9]} 1... c5 {[%clk 0:02:59.8]} 2. c3 {[%clk 0:03:00.6]}
2... g6 {[%clk 0:02:59.2]} 3. d4 {[%clk 0:02:59.7]} 3... cxd4 {[%clk 0:02:59.7]}
4. Qxd4 {[%clk 0:03:00.6]} 4... Nf6 {[%clk 0:02:58.7]} 5. e5 {[%clk 0:03:01.1]}
5... Nc6 {[%clk 0:02:58.7]} 6. Qe3 {[%clk 0:03:01.7]} 6... Nd5 {[%clk
0:02:56.7]} 7. Qe4 {[%clk 0:03:01.7]} 7... Nc7 {[%clk 0:02:53.6]} 8. Nf3 {[%clk
0:03:00.7]} 8... d5 {[%clk 0:02:53.7]} 9. exd6 {[%clk 0:03:00.6]} 9... Qxd6
{[%clk 0:02:53.7]} 10. Bf4 {[%clk 0:02:59.3]} 10... Qe6 {[%clk 0:02:52.8]} 11.
Bd3 {[%clk 0:02:53.6]} 11... Nd5 {[%clk 0:02:48.8]} 12. Be5 {[%clk 0:02:42.9]}
12... Nxe5 {[%clk 0:02:37.9]} 13. Qxe5 {[%clk 0:02:22.5]} 13... Bg7 {[%clk
0:02:26.3]} 14. Bb5+ {[%clk 0:02:19.7]} 14... Kf8 {[%clk 0:02:26.5]} 15. Qxe6
{[%clk 0:02:19]} 15... Bxe6 {[%clk 0:02:27.4]} 16. Nbd2 {[%clk 0:02:18.2]} 16...
a6 {[%clk 0:02:20.6]} 17. Ba4 {[%clk 0:02:15.8]} 17... Nf4 {[%clk 0:02:08.9]}
18. O-O {[%clk 0:02:12.7]} 18... b5 {[%clk 0:02:05]} 19. Bb3 {[%clk 0:02:11]}
19... a5 {[%clk 0:01:44.3]} 20. g3 {[%clk 0:02:08]} 20... Nd5 {[%clk 0:01:10.3]}
21. Ng5 {[%clk 0:02:00.2]} 21... a4 {[%clk 0:01:09.3]} 22. Nxe6+ {[%clk
0:01:59.1]} 22... fxe6 {[%clk 0:01:10.2]} 23. Bc2 {[%clk 0:01:59.2]} 23... a3
{[%clk 0:01:10.2]} 24. bxa3 {[%clk 0:01:55.4]} 24... Rxa3 {[%clk 0:01:00.7]} 25.
Bb3 {[%clk 0:01:52.1]} 25... Nxc3 {[%clk 0:00:56.6]} 26. Rae1 {[%clk 0:01:45.2]}
26... Nxa2 {[%clk 0:00:54.4]} 27. Rxe6 {[%clk 0:01:35.3]} 27... Bc3 {[%clk
0:00:29.2]} 28. Bxa2 {[%clk 0:01:33.8]} 28... Rxa2 {[%clk 0:00:26.5]} 29. Ne4
{[%clk 0:01:34.7]} 29... b4 {[%clk 0:00:20.2]} 30. Rd1 {[%clk 0:01:28.4]} 30...
Kf7 {[%clk 0:00:19.3]} 31. Ng5+ {[%clk 0:01:27.6]} 31... Kg7 {[%clk 0:00:18.7]}
32. h4 {[%clk 0:00:59.8]} 32... Bf6 {[%clk 0:00:18.1]} 33. Ne4 {[%clk
0:00:56.7]} 33... b3 {[%clk 0:00:18.3]} 34. Nxf6 {[%clk 0:00:51.1]} 34... exf6
{[%clk 0:00:18]} 35. Rd7+ {[%clk 0:00:49.6]} 35... Kh6 {[%clk 0:00:18]} 36. Rb7
{[%clk 0:00:49.7]} 36... b2 {[%clk 0:00:18.3]} 37. Kg2 {[%clk 0:00:46.2]} 37...
Rd8 {[%clk 0:00:16]} 38. Rxf6 {[%clk 0:00:43.1]} 38... Rd2 {[%clk 0:00:14.8]}
39. Rff7 {[%clk 0:00:40.7]} 39... g5 {[%clk 0:00:14.8]} 40. Rxh7+ {[%clk
0:00:38.6]} 40... Kg6 {[%clk 0:00:15.4]} 41. Rhg7+ {[%clk 0:00:38.6]} 41... Kf6
{[%clk 0:00:16]} 42. hxg5+ {[%clk 0:00:33.2]} 42... Ke6 {[%clk 0:00:15.7]} 43.
Rgf7 {[%clk 0:00:12.9]} 43... Rc2 {[%clk 0:00:10.8]} 44. Rf6+ {[%clk 0:00:12.9]}
44... Ke5 {[%clk 0:00:11.2]} 45. Kh3 {[%clk 0:00:10.8]} 45... Kd4 {[%clk
0:00:10.4]} 46. g6 {[%clk 0:00:10.4]} 46... Kd3 {[%clk 0:00:09.9]} 47. g7 {[%clk
0:00:10.6]} 47... Rc8 {[%clk 0:00:08.6]} 48. Rf8 {[%clk 0:00:10.7]} 48... Rxf8
{[%clk 0:00:06.7]} 49. gxf8=Q {[%clk 0:00:11.6]} 49... Kc2 {[%clk 0:00:06.8]}
50. Qc5+ {[%clk 0:00:11.3]} 50... Kd1 {[%clk 0:00:06.9]} 51. Rxb2 {[%clk
0:00:10.9]} 51... Rxb2 {[%clk 0:00:07]} 52. Qd4+ {[%clk 0:00:11.1]} 52... Rd2
{[%clk 0:00:07.9]} 53. Qxd2+ {[%clk 0:00:11.3]} 53... Kxd2 {[%clk 0:00:08.8]}
54. f4 {[%clk 0:00:12.2]} 1-0

[Event "*** Titled Tuesday Blitz"]
[Site "Chess.com"]
[Date "2020.12.29"]
[Round "7"]
[White "Alekseyviktorovich"]
[Black "Pertinhez76"]
[Result "1-0"]
[WhiteElo "2324"]
[BlackElo "2113"]
[TimeControl "180+1"]
[EndTime "11:17:37 PST"]
[Termination "Alekseyviktorovich won on time"]

1. e4 {[%clk 0:03:00.9]} 1... e6 {[%clk 0:02:19.7]} 2. d4 {[%clk 0:02:59.9]}
2... d5 {[%clk 0:02:18.2]} 3. Nd2 {[%clk 0:02:58.7]} 3... Nf6 {[%clk 0:02:16.9]}
4. Bd3 {[%clk 0:02:57.5]} 4... c5 {[%clk 0:02:11.7]} 5. c3 {[%clk 0:02:57.3]}
5... Nc6 {[%clk 0:02:11]} 6. Ngf3 {[%clk 0:02:56.5]} 6... cxd4 {[%clk
0:02:09.4]} 7. cxd4 {[%clk 0:02:56]} 7... dxe4 {[%clk 0:02:09.6]} 8. Nxe4 {[%clk
0:02:55.7]} 8... Nxe4 {[%clk 0:02:09.3]} 9. Bxe4 {[%clk 0:02:55]} 9... Bb4+
{[%clk 0:02:09.6]} 10. Bd2 {[%clk 0:02:51.8]} 10... Bxd2+ {[%clk 0:02:04.8]} 11.
Qxd2 {[%clk 0:02:47.2]} 11... Bd7 {[%clk 0:02:04.9]} 12. O-O {[%clk 0:02:45.2]}
12... O-O {[%clk 0:02:04.7]} 13. Rad1 {[%clk 0:02:31.9]} 13... Qb6 {[%clk
0:02:02.3]} 14. Bb1 {[%clk 0:02:25.4]} 14... Qa5 {[%clk 0:01:40.8]} 15. Qd3
{[%clk 0:02:20.6]} 15... g6 {[%clk 0:01:40.3]} 16. a3 {[%clk 0:02:15.9]} 16...
Rad8 {[%clk 0:01:36.9]} 17. Qe3 {[%clk 0:02:14.3]} 17... Qh5 {[%clk 0:01:35.2]}
18. Ng5 {[%clk 0:01:59.7]} 18... Ne7 {[%clk 0:01:10.4]} 19. Ne4 {[%clk
0:01:59.1]} 19... Nd5 {[%clk 0:01:09.7]} 20. Qg3 {[%clk 0:01:43.8]} 20... Bc6
{[%clk 0:01:07.9]} 21. f4 {[%clk 0:01:43.5]} 21... f5 {[%clk 0:01:04.8]} 22. Ng5
{[%clk 0:01:42.9]} 22... Rfe8 {[%clk 0:01:04.5]} 23. Rfe1 {[%clk 0:01:39.2]}
23... Bd7 {[%clk 0:01:02.4]} 24. Ba2 {[%clk 0:01:37.1]} 24... h6 {[%clk
0:01:01.1]} 25. Nf3 {[%clk 0:01:31.7]} 25... Ba4 {[%clk 0:00:59.2]} 26. Rc1
{[%clk 0:01:24.8]} 26... Qg4 {[%clk 0:00:52.1]} 27. Qxg4 {[%clk 0:01:20.1]}
27... fxg4 {[%clk 0:00:51.9]} 28. Ne5 {[%clk 0:01:20.8]} 28... Nxf4 {[%clk
0:00:51.2]} 29. Nxg4 {[%clk 0:01:14.1]} 29... Nd3 {[%clk 0:00:46.6]} 30. Rxe6
{[%clk 0:01:13.6]} 30... Rxe6 {[%clk 0:00:40]} 31. Bxe6+ {[%clk 0:01:12.9]}
31... Kh8 {[%clk 0:00:32.9]} 32. Rc7 {[%clk 0:01:09.4]} 32... Rf8 {[%clk
0:00:21.4]} 33. Rxb7 {[%clk 0:00:57]} 33... Nf4 {[%clk 0:00:20.4]} 34. Bc4
{[%clk 0:00:44.5]} 34... h5 {[%clk 0:00:19.6]} 35. Ne5 {[%clk 0:00:42.8]} 35...
Bc2 {[%clk 0:00:20.4]} 36. g3 {[%clk 0:00:31.7]} 36... Be4 {[%clk 0:00:19.2]}
37. gxf4 {[%clk 0:00:22.5]} 37... Bxb7 {[%clk 0:00:17.2]} 38. Nxg6+ {[%clk
0:00:23]} 38... Kg7 {[%clk 0:00:17.4]} 39. Nxf8 {[%clk 0:00:23.6]} 39... Kxf8
{[%clk 0:00:17.1]} 40. d5 {[%clk 0:00:23.5]} 40... Ke7 {[%clk 0:00:17.5]} 41.
Kf2 {[%clk 0:00:23.4]} 41... Kd6 {[%clk 0:00:16.6]} 42. Ke3 {[%clk 0:00:23.6]}
42... Kc5 {[%clk 0:00:16]} 43. Kd3 {[%clk 0:00:23.2]} 43... Bc8 {[%clk
0:00:15.5]} 44. b4+ {[%clk 0:00:22.9]} 44... Kd6 {[%clk 0:00:13.3]} 45. Kd4
{[%clk 0:00:23.2]} 45... Bh3 {[%clk 0:00:11.9]} 46. a4 {[%clk 0:00:22.5]} 46...
Bg2 {[%clk 0:00:09.9]} 47. b5 {[%clk 0:00:21.2]} 47... Bh3 {[%clk 0:00:08.6]}
48. a5 {[%clk 0:00:21.3]} 48... Bc8 {[%clk 0:00:06.8]} 49. b6 {[%clk 0:00:21.3]}
49... axb6 {[%clk 0:00:05.7]} 50. axb6 {[%clk 0:00:21.5]} 50... Bb7 {[%clk
0:00:04.8]} 51. f5 {[%clk 0:00:21.1]} 51... h4 {[%clk 0:00:02.9]} 52. f6 {[%clk
0:00:21.1]} 1-0

[Event "*** Titled Tuesday Blitz"]
[Site "Chess.com"]
[Date "2020.12.29"]
[Round "7"]
[White "CSB7"]
[Black "grunbergmihai"]
[Result "1/2-1/2"]
[WhiteElo "2623"]
[BlackElo "2447"]
[TimeControl "180+1"]
[EndTime "11:17:38 PST"]
[Termination "Game drawn by agreement"]

1. Nf3 {[%clk 0:03:00.9]} 1... Nf6 {[%clk 0:02:58.9]} 2. d4 {[%clk 0:03:00.1]}
2... g6 {[%clk 0:02:56.1]} 3. c4 {[%clk 0:02:59.3]} 3... Bg7 {[%clk 0:02:55.7]}
4. Nc3 {[%clk 0:02:59.8]} 4... O-O {[%clk 0:02:47.1]} 5. e4 {[%clk 0:02:59.6]}
5... d6 {[%clk 0:02:46.8]} 6. Be2 {[%clk 0:02:59.9]} 6... c6 {[%clk 0:02:46.6]}
7. O-O {[%clk 0:02:59.5]} 7... a6 {[%clk 0:02:47.2]} 8. a3 {[%clk 0:02:37.7]}
8... b5 {[%clk 0:02:46]} 9. h3 {[%clk 0:02:35.1]} 9... bxc4 {[%clk 0:02:44.5]}
10. Bxc4 {[%clk 0:02:34.9]} 10... d5 {[%clk 0:02:43.2]} 11. Bd3 {[%clk
0:02:34.4]} 11... dxe4 {[%clk 0:02:42]} 12. Nxe4 {[%clk 0:02:33.7]} 12... Nxe4
{[%clk 0:02:41.1]} 13. Bxe4 {[%clk 0:02:34.6]} 13... Be6 {[%clk 0:02:41]} 14.
Bf4 {[%clk 0:02:15.4]} 14... Bd5 {[%clk 0:02:39.5]} 15. Qc2 {[%clk 0:02:12.4]}
15... Nd7 {[%clk 0:02:37.7]} 16. Rac1 {[%clk 0:02:07.7]} 16... Nf6 {[%clk
0:02:32.3]} 17. Bxd5 {[%clk 0:02:02]} 17... cxd5 {[%clk 0:02:31]} 18. Ne5 {[%clk
0:01:53.7]} 18... Ne4 {[%clk 0:02:16.7]} 19. Qc6 {[%clk 0:01:30.4]} 19... Ra7
{[%clk 0:01:51.2]} 20. f3 {[%clk 0:01:12.5]} 20... Nf6 {[%clk 0:01:45.2]} 21.
Kh1 {[%clk 0:00:57.7]} 21... Nd7 {[%clk 0:01:30.9]} 22. Qxd5 {[%clk 0:00:44.8]}
22... Nxe5 {[%clk 0:01:30.6]} 23. Qxd8 {[%clk 0:00:43.4]} 23... Rxd8 {[%clk
0:01:31.5]} 24. dxe5 {[%clk 0:00:40.3]} 24... g5 {[%clk 0:01:17.8]} 25. Bxg5
{[%clk 0:00:38]} 25... Bxe5 {[%clk 0:01:17.4]} 26. Rc2 {[%clk 0:00:35.8]} 26...
f6 {[%clk 0:01:15.1]} 27. Bc1 {[%clk 0:00:13.9]} 27... Rad7 {[%clk 0:01:10.5]}
28. g4 {[%clk 0:00:09.2]} 28... Kf7 {[%clk 0:01:03]} 29. Kg2 {[%clk 0:00:08.7]}
29... Kg6 {[%clk 0:00:52.2]} 30. f4 {[%clk 0:00:08.7]} 30... Bb8 {[%clk
0:00:48.7]} 31. f5+ {[%clk 0:00:08.1]} 31... Kf7 {[%clk 0:00:47.6]} 32. Bf4
{[%clk 0:00:08.5]} 32... Bxf4 {[%clk 0:00:41.9]} 33. Rxf4 {[%clk 0:00:09.4]}
33... Rd2+ {[%clk 0:00:40.4]} 34. Rf2 {[%clk 0:00:04.5]} 34... Rxf2+ {[%clk
0:00:39.7]} 35. Kxf2 {[%clk 0:00:02.6]} 35... Rd3 {[%clk 0:00:40.2]} 36. Kg2
{[%clk 0:00:02.6]} 36... Rb3 {[%clk 0:00:40.1]} 37. Kh2 {[%clk 0:00:02.1]} 37...
a5 {[%clk 0:00:39.9]} 38. Kg2 {[%clk 0:00:02]} 38... a4 {[%clk 0:00:39.8]} 39.
Rc4 {[%clk 0:00:01.7]} 39... Rxb2+ {[%clk 0:00:39.4]} 40. Kg1 {[%clk 0:00:01.7]}
40... Rb3 {[%clk 0:00:38]} 41. Rxa4 {[%clk 0:00:02.2]} 41... Rxh3 {[%clk
0:00:37.3]} 42. Kg2 {[%clk 0:00:02.8]} 42... Rb3 {[%clk 0:00:36.7]} 43. Ra7
{[%clk 0:00:03.3]} 43... h5 {[%clk 0:00:34.2]} 44. gxh5 {[%clk 0:00:03]} 44...
Rb5 {[%clk 0:00:33.9]} 45. Kg3 {[%clk 0:00:02.8]} 45... Rxf5 {[%clk 0:00:33.5]}
46. Kg4 {[%clk 0:00:03.4]} 46... Rg5+ {[%clk 0:00:32.3]} 47. Kh4 {[%clk
0:00:03.6]} 47... Rg1 {[%clk 0:00:32.1]} 48. a4 {[%clk 0:00:03.2]} 48... Rh1+
{[%clk 0:00:31.9]} 49. Kg4 {[%clk 0:00:03.7]} 49... Rg1+ {[%clk 0:00:31.7]} 50.
Kh4 {[%clk 0:00:04.2]} 50... f5 {[%clk 0:00:30.9]} 51. h6 {[%clk 0:00:02.4]}
51... f4 {[%clk 0:00:26.7]} 52. h7 {[%clk 0:00:02.1]} 52... Rh1+ {[%clk
0:00:22.4]} 53. Kg4 {[%clk 0:00:02.2]} 53... Rxh7 {[%clk 0:00:23.1]} 54. Kxf4
{[%clk 0:00:02.6]} 1/2-1/2

[Event "*** Titled Tuesday Blitz"]
[Site "Chess.com"]
[Date "2020.12.29"]
[Round "7"]
[White "glebus008"]
[Black "atalz0"]
[Result "0-1"]
[WhiteElo "2236"]
[BlackElo "2373"]
[TimeControl "180+1"]
[EndTime "11:17:38 PST"]
[Termination "atalz0 won by checkmate"]

1. e4 {[%clk 0:03:00.9]} 1... d5 {[%clk 0:02:59.8]} 2. exd5 {[%clk 0:03:00.2]}
2... Nf6 {[%clk 0:02:59]} 3. Bb5+ {[%clk 0:02:58.8]} 3... Bd7 {[%clk 0:02:58.7]}
4. Be2 {[%clk 0:02:58.3]} 4... Nxd5 {[%clk 0:02:58.2]} 5. d4 {[%clk 0:02:55.8]}
5... Bf5 {[%clk 0:02:58.4]} 6. a3 {[%clk 0:02:55.3]} 6... e6 {[%clk 0:02:58.4]}
7. c4 {[%clk 0:02:55.3]} 7... Nf6 {[%clk 0:02:54.6]} 8. Nc3 {[%clk 0:02:55.7]}
8... Be7 {[%clk 0:02:43.6]} 9. Nf3 {[%clk 0:02:56.1]} 9... O-O {[%clk
0:02:41.8]} 10. O-O {[%clk 0:02:56.6]} 10... Ne4 {[%clk 0:02:42.4]} 11. Be3
{[%clk 0:02:47.1]} 11... Nc6 {[%clk 0:02:38.9]} 12. Nxe4 {[%clk 0:02:46.4]}
12... Bxe4 {[%clk 0:02:38.5]} 13. b4 {[%clk 0:02:44.2]} 13... Bf6 {[%clk
0:02:37.8]} 14. Ra2 {[%clk 0:02:32.6]} 14... Qd7 {[%clk 0:01:53.6]} 15. Rd2
{[%clk 0:02:23]} 15... Rfd8 {[%clk 0:01:52.4]} 16. b5 {[%clk 0:02:18.4]} 16...
Na5 {[%clk 0:01:46.2]} 17. Qa4 {[%clk 0:02:16.5]} 17... b6 {[%clk 0:01:41.6]}
18. Rfd1 {[%clk 0:02:08.4]} 18... a6 {[%clk 0:01:33.7]} 19. Ne5 {[%clk
0:02:03.5]} 19... Qe8 {[%clk 0:01:18.2]} 20. Qb4 {[%clk 0:01:30.9]} 20... axb5
{[%clk 0:01:14.4]} 21. cxb5 {[%clk 0:01:31.8]} 21... Be7 {[%clk 0:01:05.5]} 22.
Qc3 {[%clk 0:01:28.5]} 22... Rdc8 {[%clk 0:00:55.3]} 23. a4 {[%clk 0:01:08.5]}
23... Bd5 {[%clk 0:00:52.8]} 24. Bh5 {[%clk 0:01:04.1]} 24... g6 {[%clk
0:00:51.6]} 25. Bf3 {[%clk 0:01:04.1]} 25... Bxf3 {[%clk 0:00:36.8]} 26. Nxf3
{[%clk 0:01:05]} 26... c6 {[%clk 0:00:37.2]} 27. Qd3 {[%clk 0:00:52.1]} 27...
cxb5 {[%clk 0:00:33.8]} 28. axb5 {[%clk 0:00:53]} 28... Nc4 {[%clk 0:00:31.4]}
29. Rc2 {[%clk 0:00:47.9]} 29... Ra3 {[%clk 0:00:24.6]} 30. Rc3 {[%clk
0:00:48.2]} 30... Nxe3 {[%clk 0:00:17.7]} 31. Rxa3 {[%clk 0:00:39]} 31... Nxd1
{[%clk 0:00:17.4]} 32. Ra1 {[%clk 0:00:23.5]} 32... Nc3 {[%clk 0:00:16.3]} 33.
Ne5 {[%clk 0:00:23.5]} 33... Nd5 {[%clk 0:00:15.5]} 34. Nc6 {[%clk 0:00:23.2]}
34... Rxc6 {[%clk 0:00:14.2]} 35. bxc6 {[%clk 0:00:22.7]} 35... Qxc6 {[%clk
0:00:15.1]} 36. h4 {[%clk 0:00:20.5]} 36... h5 {[%clk 0:00:14.7]} 37. Ra7 {[%clk
0:00:17.4]} 37... Bxh4 {[%clk 0:00:13.5]} 38. g3 {[%clk 0:00:16.5]} 38... Bf6
{[%clk 0:00:13.4]} 39. Qf3 {[%clk 0:00:13.1]} 39... Kg7 {[%clk 0:00:13]} 40. Kh2
{[%clk 0:00:12.6]} 40... b5 {[%clk 0:00:12.4]} 41. Qa3 {[%clk 0:00:10.7]} 41...
b4 {[%clk 0:00:10.9]} 42. Qa5 {[%clk 0:00:10.8]} 42... Bxd4 {[%clk 0:00:09.6]}
43. Ra8 {[%clk 0:00:10.3]} 43... Qc2 {[%clk 0:00:05.2]} 44. Qd8 {[%clk 0:00:07]}
44... Qxf2+ {[%clk 0:00:04.8]} 45. Kh3 {[%clk 0:00:07.4]} 45... Qf1+ {[%clk
0:00:04.1]} 46. Kh2 {[%clk 0:00:05.9]} 46... Bg1+ {[%clk 0:00:03.7]} 47. Kh1
{[%clk 0:00:05.3]} 47... Bf2+ {[%clk 0:00:03.9]} 48. Kh2 {[%clk 0:00:05.3]}
48... Qg1+ {[%clk 0:00:04.2]} 49. Kh3 {[%clk 0:00:05.6]} 49... Qxg3# {[%clk
0:00:04.9]} 0-1

[Event "*** Titled Tuesday Blitz"]
[Site "Chess.com"]
[Date "2020.12.29"]
[Round "7"]
[White "onnoelgersma"]
[Black "szabadaba"]
[Result "0-1"]
[WhiteElo "2428"]
[BlackElo "2592"]
[TimeControl "180+1"]
[EndTime "11:17:39 PST"]
[Termination "szabadaba won by resignation"]

1. e4 {[%clk 0:03:00.9]} 1... c6 {[%clk 0:03:00]} 2. Nf3 {[%clk 0:03:00.9]} 2...
d5 {[%clk 0:03:00.9]} 3. Nc3 {[%clk 0:03:01.3]} 3... dxe4 {[%clk 0:03:01.1]} 4.
Nxe4 {[%clk 0:03:02.2]} 4... Nd7 {[%clk 0:03:01.3]} 5. Qe2 {[%clk 0:03:02.1]}
5... Ndf6 {[%clk 0:03:01.4]} 6. g3 {[%clk 0:03:00.2]} 6... Bf5 {[%clk
0:02:58.3]} 7. Nxf6+ {[%clk 0:02:51.4]} 7... Nxf6 {[%clk 0:02:57.7]} 8. d3
{[%clk 0:02:52]} 8... Qc8 {[%clk 0:02:51.2]} 9. h3 {[%clk 0:02:45]} 9... h6
{[%clk 0:02:50.4]} 10. Bg2 {[%clk 0:02:43.7]} 10... Nd5 {[%clk 0:02:47.2]} 11.
Ne5 {[%clk 0:02:38.6]} 11... g6 {[%clk 0:02:39]} 12. c4 {[%clk 0:02:05.6]} 12...
Nb6 {[%clk 0:02:31.3]} 13. d4 {[%clk 0:02:04.7]} 13... Bg7 {[%clk 0:02:28.7]}
14. Bf4 {[%clk 0:01:59.9]} 14... O-O {[%clk 0:02:27.1]} 15. Rd1 {[%clk
0:01:55.5]} 15... Rd8 {[%clk 0:02:12.9]} 16. g4 {[%clk 0:01:47.8]} 16... Be6
{[%clk 0:02:12.4]} 17. b3 {[%clk 0:01:47.5]} 17... a5 {[%clk 0:02:06.5]} 18. O-O
{[%clk 0:01:45.7]} 18... a4 {[%clk 0:02:06.4]} 19. Qe3 {[%clk 0:00:47.4]} 19...
g5 {[%clk 0:02:00.3]} 20. Bg3 {[%clk 0:00:47.5]} 20... axb3 {[%clk 0:01:57.5]}
21. axb3 {[%clk 0:00:48.4]} 21... Ra6 {[%clk 0:01:53]} 22. f4 {[%clk 0:00:45.4]}
22... Bf6 {[%clk 0:01:43.2]} 23. f5 {[%clk 0:00:30.6]} 23... Bd7 {[%clk
0:01:42]} 24. Rfe1 {[%clk 0:00:30.7]} 24... Be8 {[%clk 0:01:39.1]} 25. h4 {[%clk
0:00:27.7]} 25... Ra2 {[%clk 0:01:36.8]} 26. hxg5 {[%clk 0:00:25.4]} 26... hxg5
{[%clk 0:01:36.1]} 27. Nf3 {[%clk 0:00:25]} 27... Ra3 {[%clk 0:01:15]} 28. Qc3
{[%clk 0:00:23.8]} 28... c5 {[%clk 0:01:12.1]} 29. Be5 {[%clk 0:00:19.8]} 29...
cxd4 {[%clk 0:01:05.1]} 30. Bxd4 {[%clk 0:00:19.8]} 30... Nd5 {[%clk 0:00:57.4]}
31. cxd5 {[%clk 0:00:15]} 31... Qxc3 {[%clk 0:00:56.4]} 32. Bxc3 {[%clk
0:00:15.2]} 32... Bxc3 {[%clk 0:00:55.2]} 33. Rxe7 {[%clk 0:00:16.1]} 33... Rxb3
{[%clk 0:00:53.9]} 34. d6 {[%clk 0:00:16]} 34... Bf6 {[%clk 0:00:53.4]} 35. Rc7
{[%clk 0:00:15]} 35... Bc6 {[%clk 0:00:52]} 36. Ne1 {[%clk 0:00:12.5]} 36... Rg3
{[%clk 0:00:49.2]} 37. Kh2 {[%clk 0:00:12]} 37... Be5 {[%clk 0:00:42]} 38. Kh1
{[%clk 0:00:10.4]} 38... Rxd6 {[%clk 0:00:33.6]} 39. Rxd6 {[%clk 0:00:09.3]}
39... Bxd6 {[%clk 0:00:33.5]} 40. Rc8+ {[%clk 0:00:09.4]} 40... Kg7 {[%clk
0:00:33.2]} 41. Bxc6 {[%clk 0:00:09.4]} 41... bxc6 {[%clk 0:00:33]} 42. Rxc6
{[%clk 0:00:10.3]} 42... Bf4 {[%clk 0:00:32.4]} 43. Ng2 {[%clk 0:00:07.8]} 43...
Rxg4 {[%clk 0:00:31.9]} 44. Kg1 {[%clk 0:00:06.8]} 44... Be5 {[%clk 0:00:27.6]}
45. Kf2 {[%clk 0:00:06.4]} 45... Re4 {[%clk 0:00:27.4]} 46. Kf3 {[%clk
0:00:06.2]} 46... Ra4 {[%clk 0:00:24.7]} 47. Ne3 {[%clk 0:00:06.3]} 47... Ra3
{[%clk 0:00:24.4]} 48. Ke4 {[%clk 0:00:06]} 48... Bf4 {[%clk 0:00:24.5]} 49. Ng4
{[%clk 0:00:06.3]} 49... Ra4+ {[%clk 0:00:24]} 50. Kf3 {[%clk 0:00:06.3]} 50...
Ra3+ {[%clk 0:00:21]} 51. Ke4 {[%clk 0:00:06.5]} 51... Rg3 {[%clk 0:00:21.1]}
52. f6+ {[%clk 0:00:03.3]} 52... Kg6 {[%clk 0:00:20.6]} 53. Ne5+ {[%clk
0:00:03.3]} 53... Bxe5 {[%clk 0:00:20.2]} 54. Kxe5 {[%clk 0:00:04.2]} 54... Re3+
{[%clk 0:00:19.7]} 55. Kd4 {[%clk 0:00:04.4]} 55... Rf3 {[%clk 0:00:20]} 56. Ke5
{[%clk 0:00:04.1]} 56... Rf5+ {[%clk 0:00:20.3]} 0-1